bitfinex-derivatives/quotes_ETHF0:USTF0_20220106
["timestamp","ask_amount","ask_price","bid_price","bid_amount"]
[1641433828467,0.93877942,3518.8,3518.5,0.53525078]
[1641433829670,0.93877942,3518.8,3518.5,0.30525978]
[1641433829868,0.93877942,3518.7,3518.6,0.30525978]
[1641433830268,1.63787942,3518.7,3518.6,0.30525978]
[1641433830868,0.6991,3518.7,3518.6,0.30525978]
[1641433831069,0.6991,3518.7,3518.6,1.2856531]
[1641433831869,0.6991,3518.7,3518.6,1.5156441]
[1641433832172,2.55343364,3518.7,3518.6,1.5156441]
[1641433832970,1.30170332,3518.7,3518.6,1.82090388]
[1641433834271,1.30170332,3518.7,3518.6,0.53525078]
[1641433835574,0.60260332,3518.7,3518.6,0.53525078]
[1641433836778,0.60260332,3518.7,3518.6,2.03525078]
[1641433836978,0.56865515,3518.9,3518.7,12.17]
[1641433837180,0.56865515,3518.9,3518.8,15.40252153]
[1641433837579,5.515e-05,3518.9,3518.8,3.23252153]
[1641433837780,0.93886829,3519.8,3518.8,3.23252153]
[1641433838179,0.93886829,3519.8,3518.8,1.73252153]
[1641433838382,0.93886829,3519.8,3518.9,0.96417489]
[1641433838783,0.93886829,3519.8,3518.8,1.50253053]
[1641433838982,0.93886829,3519.8,3519.4,2.00479]
[1641433839182,0.132394,3519.8,3519.4,2.00479]
[1641433840984,1.5,3519.5,3519.0,0.96768006]
[1641433841284,0.132394,3519.4,3518.6,2.00479]
[1641433850294,1.5,3518.7,3518.4,0.72254299]
[1641433850492,0.132394,3518.6,3517.6,1.4544095]
[1641433850693,1.42095713,3518.4,3517.6,1.4544095]
[1641433850892,1.5,3518.2,3517.7,0.95737995]
[1641433851094,0.132394,3518.1,3517.7,0.95737995]
[1641433851295,0.812694,3518.1,3517.7,0.95737995]
[1641433852594,0.812694,3518.1,3517.4,3.28130524]
[1641433852800,0.812694,3518.1,3517.4,2.00479]
[1641433853494,0.812694,3518.1,3517.5,0.74874367]
[1641433854296,1.5,3517.8,3517.5,0.74874367]
[1641433854496,0.132394,3517.7,3517.5,0.74874367]
[1641433857902,0.132394,3517.7,3517.6,0.31952735]
[1641433860203,0.132394,3517.7,3517.5,1.59604259]
[1641433860805,0.132394,3517.7,3517.6,0.229991]
[1641433861005,0.132394,3517.7,3517.5,1.59604259]
[1641433863805,1.632394,3517.7,3517.5,1.59604259]
[1641433864205,1.632394,3517.7,3517.5,1.27651524]
[1641433864407,1.632394,3517.7,3517.6,1.27651524]
[1641433864606,1.632394,3517.7,3517.6,1.50650624]
[1641433864807,0.132394,3517.7,3517.6,1.50650624]
[1641433865206,0.132394,3517.7,3517.6,1.27651524]
[1641433866411,0.132394,3517.7,3517.6,1.59604259]
[1641433866608,1.55376517,3517.7,3517.1,1.92334781]
[1641433866809,1.5,3517.2,3516.6,5.55517978]
[1641433867009,2.00479,3516.7,3516.6,5.55517978]
[1641433867211,2.00479,3516.7,3516.6,7.978e-05]
[1641433867510,12.17,3516.6,3515.1,62.5309]
[1641433867709,1.5,3516.4,3515.1,62.5309]
[1641433867911,1.5,3516.4,3515.0,1.20790215]
[1641433868112,1.632394,3516.4,3515.7,4.01778882]
[1641433868310,0.132394,3516.4,3515.7,4.01778882]
[1641433868510,1.5,3516.1,3515.7,4.01778882]
[1641433868712,1.632394,3516.1,3516.0,3.21541192]
[1641433869011,3.637184,3516.1,3516.0,3.21541192]
[1641433869610,15.807184,3516.1,3515.7,4.01778882]
[1641433869812,1.5,3515.8,3515.7,4.01778882]
[1641433870012,3.05451509,3515.8,3515.7,4.01778882]
[1641433870213,15.22451509,3515.8,3515.7,4.01778882]
[1641433870913,15.22451509,3515.8,3515.4,4.4195677]
[1641433871113,15.67479,3515.5,3514.1,4.4195677]
[1641433871314,1.5,3515.1,3514.1,4.4195677]
[1641433871814,0.6572,3515.1,3514.1,4.4195677]
[1641433872113,14.3272,3515.1,3514.1,4.4195677]
[1641433872514,1.42241036,3514.8,3514.1,4.4195677]
[1641433872713,0.132394,3514.7,3514.1,4.4195677]
[1641433873218,2.00479,3514.4,3514.1,4.4195677]
[1641433873413,2.137184,3514.4,3514.1,4.4195677]
[1641433874512,2.137184,3514.4,3514.2,0.229991]
[1641433874513,2.00479,3514.4,3514.2,0.229991]
[1641433875115,2.00479,3514.4,3514.1,4.4195677]
[1641433875515,2.00479,3514.4,3514.2,0.229991]
[1641433875718,2.00479,3514.4,3514.1,4.4195677]
[1641433876516,2.00479,3514.4,3514.2,0.229991]
[1641433878620,29.8386,3515.3,3514.2,0.229991]
[1641433878818,30.1844,3515.4,3514.2,0.229991]
[1641433879020,2.00479,3514.9,3514.2,0.229991]
[1641433879621,2.94518218,3514.9,3514.2,0.229991]
[1641433880824,2.00479,3514.9,3514.2,0.229991]
[1641433881022,2.00479,3514.9,3514.2,3.44714584]
[1641433882122,2.00479,3514.9,3514.2,0.229991]
[1641433883021,2.00479,3514.9,3513.9,0.71560397]
[1641433883221,2.00479,3514.9,3514.2,2.00479]
[1641433883423,2.00479,3514.9,3513.9,0.71560397]
[1641433888927,2.00479,3514.9,3514.4,1.5]
[1641433889130,2.00479,3514.9,3514.3,2.00479]
[1641433889528,2.00479,3514.9,3514.3,3.50479]
[1641433890829,32.0403,3515.9,3514.3,3.50479]
[1641433891031,32.0403,3515.9,3514.3,2.00479]
[1641433891230,34.04509,3515.9,3515.1,2.00479]
[1641433891430,0.132394,3515.8,3515.1,2.00479]
[1641433892031,12.302394,3515.8,3515.1,2.00479]
[1641433892231,12.302394,3515.8,3514.9,1.25117635]
[1641433892631,0.132394,3515.8,3514.9,1.25117635]
[1641433892932,12.302394,3515.8,3514.9,1.25117635]
[1641433893133,2.00479,3515.2,3514.9,1.25117635]
[1641433893636,2.00479,3515.2,3515.0,0.229991]
[1641433894637,2.137184,3515.2,3514.9,1.25117635]
[1641433897041,2.137184,3515.2,3514.4,1.09323461]
[1641433898442,0.94039218,3514.9,3514.7,1.5815523]
[1641433898641,0.132394,3514.8,3514.7,1.5815523]
[1641433899242,2.137184,3514.8,3514.7,1.5815523]
[1641433899641,15.72977243,3514.8,3514.4,1.89788694]
[1641433899844,17.22977243,3514.8,3514.4,1.89788694]
[1641433900043,16.33300034,3514.8,3514.4,1.89788694]
[1641433900243,17.58685658,3514.8,3514.3,1.60878048]
[1641433901044,5.41685658,3514.8,3514.3,1.60878048]
[1641433901244,2.00479,3514.4,3514.1,1.89788694]
[1641433901447,2.00479,3514.4,3514.2,0.229991]
[1641433901644,2.00479,3514.4,3513.8,1.89788694]
[1641433902145,2.00479,3514.4,3513.9,1.01464883]
[1641433903046,0.93940094,3514.3,3513.9,1.01464883]
[1641433904049,2.94419094,3514.4,3514.0,1.89788694]
[1641433905448,2.00479,3514.4,3514.0,1.89788694]
[1641433905649,2.00479,3514.4,3514.1,1.89788694]
[1641433906048,2.00479,3514.4,3514.2,0.229991]
[1641433906248,2.00479,3514.4,3514.1,1.89788694]
[1641433906851,2.00479,3514.4,3514.0,1.89788694]
[1641433907051,0.132394,3514.3,3514.0,1.89788694]
[1641433907953,1.07179494,3514.3,3514.0,1.89788694]
[1641433908153,1.07179494,3514.3,3514.1,0.229991]
[1641433908454,0.93940094,3514.3,3513.9,1.01464883]
[1641433909055,2.94419094,3514.4,3514.2,1.60884668]
[1641433909257,2.94419094,3514.4,3514.3,0.229991]
[1641433909555,2.94419094,3514.4,3514.2,1.60884668]
[1641433910253,2.94419094,3514.4,3513.9,2.91253577]
[1641433910254,2.00479,3514.4,3514.3,1.83883768]
[1641433910457,2.00479,3514.4,3514.3,1.60884668]
[1641433911058,2.00479,3514.4,3514.3,1.83883768]
[1641433911655,2.00479,3514.4,3514.0,1.89788694]
[1641433911857,2.00479,3514.4,3513.9,1.01464883]
[1641433913957,2.00479,3514.4,3513.9,2.51464883]
[1641433914157,2.00479,3514.8,3514.0,1.5]
[1641433914360,2.00479,3514.8,3514.0,3.74726245]
[1641433914557,2.00479,3514.8,3514.1,0.96537681]
[1641433915257,2.00479,3514.8,3514.3,2.00479]
[1641433915659,2.00479,3514.8,3514.3,3.28667564]
[1641433916963,2.00479,3514.8,3514.3,1.28188564]
[1641433917259,2.00479,3514.8,3513.9,2.51464883]
[1641433917260,2.137184,3514.8,3514.0,1.28188564]
[1641433917460,2.972284,3514.8,3514.0,1.28188564]
[1641433918663,2.972284,3514.8,3514.1,0.96548794]
[1641433919063,2.972284,3514.8,3514.0,0.96548794]
[1641433919363,2.972284,3514.8,3514.2,0.96548794]
[1641433919567,2.972284,3514.8,3514.1,0.96548794]
[1641433919764,2.972284,3514.8,3513.9,1.01464883]
[1641433920165,1.42247713,3514.7,3513.9,1.01464883]
[1641433920364,0.132394,3514.6,3513.9,1.01464883]
[1641433920564,1.42256617,3514.5,3513.9,1.01464883]
[1641433920764,0.132394,3514.4,3513.9,1.01464883]
[1641433921168,0.132394,3514.4,3514.1,0.12318226]
[1641433921365,2.00479,3514.3,3514.1,0.12318226]
[1641433922266,2.00479,3514.3,3514.2,0.229991]
[1641433922466,2.00479,3514.3,3513.9,1.01464883]
[1641433922866,2.00479,3514.3,3514.0,0.96550238]
[1641433922867,0.132394,3514.2,3514.0,0.96550238]
[1641433923067,2.00479,3514.3,3514.1,0.229991]
[1641433923567,2.00479,3514.3,3514.2,0.96550238]
[1641433924269,2.00479,3514.3,3514.2,0.229991]
[1641433924468,2.00479,3514.3,3514.1,0.96550238]
[1641433924669,2.00479,3514.3,3514.0,0.12411725]
[1641433924670,2.00479,3514.3,3514.2,0.96550238]
[1641433924869,2.00479,3514.3,3514.2,1.08961963]
[1641433925072,2.00479,3514.3,3514.2,0.35410825]
[1641433925270,2.00479,3514.3,3514.2,1.08961963]
[1641433925969,2.00479,3514.3,3514.2,1.31961063]
[1641433926169,2.00479,3514.3,3514.2,0.229991]
[1641433926572,2.00479,3514.3,3514.2,1.19550655]
[1641433926771,2.00479,3514.3,3514.2,0.229991]
[1641433926973,2.00479,3514.3,3514.2,1.19550655]
[1641433928174,2.00479,3514.3,3514.2,0.96551555]
[1641433928373,2.00479,3514.3,3514.2,1.19550655]
[1641433928574,2.00479,3514.3,3514.2,0.229991]
[1641433928775,2.00479,3514.3,3514.2,1.19550655]
[1641433928974,2.00479,3514.3,3514.1,0.96551555]
[1641433929175,2.00479,3514.3,3513.9,1.01464883]
[1641433929176,2.00479,3514.3,3514.2,1.08962515]
[1641433930377,2.00479,3514.3,3514.2,1.31961615]
[1641433930577,2.00479,3514.3,3514.2,1.08962515]
[1641433930977,2.00479,3514.3,3514.2,0.96551555]
[1641433931378,2.00479,3514.3,3514.2,0.229991]
[1641433931680,2.00479,3514.3,3514.2,1.19550655]
[1641433931877,2.00479,3514.3,3514.2,0.229991]
[1641433932078,2.00479,3514.3,3514.2,1.19550655]
[1641433932881,2.00479,3514.3,3514.2,0.96551555]
[1641433933388,2.00479,3514.3,3514.0,0.96551555]
[1641433933583,2.00479,3514.3,3514.2,0.96551555]
[1641433933782,2.00479,3514.3,3514.1,0.96551555]
[1641433933985,2.00479,3514.3,3514.2,1.19550655]
[1641433934184,2.00479,3514.3,3514.2,0.96551555]
[1641433934786,2.00479,3514.3,3514.0,0.96551555]
[1641433934984,2.00479,3514.3,3513.9,1.01464883]
[1641433934985,2.00479,3514.3,3514.2,0.96551555]
[1641433935385,2.00479,3514.3,3514.1,0.96551555]
[1641433935586,2.00479,3514.3,3514.2,0.96551555]
[1641433935984,2.00479,3514.3,3514.0,0.96551555]
[1641433936185,2.00479,3514.3,3514.2,0.96551555]
[1641433936385,2.00479,3514.3,3514.1,0.96551555]
[1641433936787,2.00479,3514.3,3514.2,0.96551555]
[1641433937186,2.00479,3514.3,3514.0,0.96551555]
[1641433937389,2.00479,3514.3,3514.2,0.96551555]
[1641433937586,2.00479,3514.3,3514.1,0.96551555]
[1641433937786,2.00479,3514.3,3514.2,0.96551555]
[1641433938186,2.00479,3514.3,3514.0,0.96551555]
[1641433938386,2.00479,3514.3,3514.2,0.96551555]
[1641433938888,2.00479,3514.3,3514.0,0.96551555]
[1641433939086,2.00479,3514.3,3514.2,0.96551555]
[1641433939286,2.00479,3514.3,3514.1,0.96551555]
[1641433939486,2.00479,3514.3,3514.2,0.96551555]
[1641433940088,2.00479,3514.3,3514.0,0.96551555]
[1641433940287,2.00479,3514.3,3514.2,0.96551555]
[1641433940489,2.00479,3514.3,3514.1,1.19550655]
[1641433940689,2.00479,3514.3,3514.2,0.96551555]
[1641433941989,2.60807196,3514.3,3514.2,1.09010481]
[1641433942290,3.8619282,3514.3,3514.2,1.09010481]
[1641433942691,3.8619282,3514.3,3514.2,1.32009581]
[1641433943689,3.8619282,3514.3,3514.2,1.09010481]
[1641433944490,2.60807196,3514.3,3514.2,2.37199045]
[1641433945090,2.60807196,3514.3,3514.2,2.60198145]
[1641433946090,2.60807196,3514.3,3514.2,1.09010481]
[1641433946293,2.60807196,3514.3,3514.2,1.32009581]
[1641433946492,2.60807196,3514.3,3514.2,1.09010481]
[1641433947096,2.60807196,3514.3,3514.2,1.32009581]
[1641433947294,2.60807196,3514.3,3514.2,1.09010481]
[1641433947495,2.00479,3514.3,3514.2,1.09010481]
[1641433947696,2.94489356,3514.3,3514.2,1.09010481]
[1641433948097,2.94489356,3514.3,3514.2,1.32009581]
[1641433949003,0.94010356,3514.3,3514.2,1.32009581]
[1641433949205,0.94010356,3514.3,3514.2,2.92894249]
[1641433949404,1.25385624,3514.6,3514.2,2.92894249]
[1641433949603,1.25385624,3514.6,3514.3,2.00479]
[1641433949803,1.25385624,3514.6,3514.4,0.229991]
[1641433950006,1.25385624,3514.6,3514.4,1.19550655]
[1641433950410,1.25385624,3514.6,3514.5,0.96551555]
[1641433950606,2.00479,3514.8,3514.5,0.96551555]
[1641433951305,2.00479,3514.8,3514.3,0.96551555]
[1641433951506,2.00479,3514.8,3514.6,0.96551555]
[1641433951707,0.60322963,3514.7,3514.6,0.12458926]
[1641433951906,0.60322963,3514.7,3514.6,1.41147914]
[1641433952805,0.60322963,3514.7,3514.6,1.28688988]
[1641433953506,12.17,3514.6,3514.3,1.60861235]
[1641433953704,4.10801963,3514.7,3514.2,0.12458926]
[1641433953705,1.632394,3514.5,3514.2,0.12458926]
[1641433953906,1.632394,3514.5,3514.4,1.60859611]
[1641433953907,0.132394,3514.5,3514.4,1.60859611]
[1641433954507,2.60801963,3514.7,3514.4,1.60859611]
[1641433955809,2.60801963,3514.7,3514.2,0.12458926]
[1641433956011,0.60322963,3514.5,3514.1,1.89788694]
[1641433956310,0.60322963,3514.5,3513.6,1.36849649]
[1641433957310,0.60322963,3514.6,3514.2,0.12458926]
[1641433957610,2.00479,3514.3,3514.2,0.12458926]
[1641433958313,0.60322963,3514.6,3514.2,0.35458026]
[1641433958511,2.00479,3514.7,3514.2,0.35458026]
[1641433958909,2.00479,3514.7,3514.2,1.73725134]
[1641433960313,2.00479,3514.7,3514.3,0.12458926]
[1641433960314,0.60320793,3514.6,3514.3,0.12458926]
[1641433960712,0.60320793,3514.6,3514.4,0.229991]
[1641433961814,0.60320793,3514.6,3514.5,0.12458926]
[1641433962814,2.00479,3514.7,3514.5,0.12458926]
[1641433963614,2.00479,3514.7,3514.1,1.89788694]
[1641433963815,1.42260057,3514.4,3514.1,1.89788694]
[1641433964016,1.42260057,3514.4,3514.1,3.50655376]
[1641433964215,1.42260057,3514.4,3514.1,1.60866682]
[1641433964617,0.132394,3514.6,3514.1,1.60866682]
[1641433964815,2.00479,3514.7,3514.1,1.60866682]
[1641433965617,2.00479,3514.2,3514.1,1.60866682]
[1641433965818,2.00479,3514.2,3514.1,0.229991]
[1641433966717,2.00479,3514.2,3514.1,1.83865782]
[1641433967217,2.00479,3514.2,3514.1,2.8040309]
[1641433968418,2.00479,3514.2,3514.1,2.5740399]
[1641433969019,2.00479,3514.2,3514.1,0.96537308]
[1641433970019,2.137184,3514.2,3514.1,0.96537308]
[1641433970219,3.55984731,3514.2,3513.8,1.89788694]
[1641433970420,2.137184,3514.2,3513.7,1.60866682]
[1641433970820,1.42274427,3514.0,3513.8,0.96560172]
[1641433971020,0.132394,3513.9,3513.7,1.60866682]
[1641433971225,1.632394,3513.9,3513.5,1.89788694]
[1641433971423,2.92314923,3513.6,3512.9,3.78197069]
[1641433971624,5.50958,3513.0,3512.9,3.78197069]
[1641433971825,4.56378,3513.0,3512.9,2.64027069]
[1641433972028,4.56378,3513.0,3511.9,4.75626812]
[1641433972029,7.48741751,3513.0,3511.9,4.75626812]
[1641433972225,1.42372669,3512.0,3511.9,4.75626812]
[1641433972429,2.15962669,3512.0,3511.9,4.75626812]
[1641433972625,0.7359,3512.0,3511.3,4.49148012]
[1641433972824,0.7359,3512.0,3511.9,0.96604699]
[1641433973027,14.4059,3512.0,3511.3,4.49148012]
[1641433973225,2.92396794,3511.4,3511.3,4.49148012]
[1641433973424,2.92396794,3511.4,3511.3,4.06038012]
[1641433973625,7.6939575,3511.4,3511.3,3.63388012]
[1641433973826,7.6939575,3511.4,3510.8,5.38609852]
[1641433974026,1.5,3510.9,3510.8,4.41199852]
[1641433974225,2.0273,3510.9,3510.8,2.95299852]
[1641433974425,14.1973,3510.9,3510.2,5.11962135]
[1641433974625,1.5,3510.3,3510.2,3.98742135]
[1641433974824,1.5,3510.3,3508.7,8.00766406]
[1641433974825,25.09475105,3510.3,3508.7,8.00766406]
[1641433975025,25.09475105,3510.3,3509.7,6.1335886]
[1641433975225,25.09475105,3510.3,3508.7,8.00766406]
[1641433975226,1.5,3509.8,3508.7,8.00766406]
[1641433975426,1.5,3509.3,3508.7,8.00766406]
[1641433975626,5.50958,3508.8,3507.1,12.17]
[1641433975829,1.5,3508.2,3507.0,5.43559107]
[1641433976027,1.5,3508.2,3507.0,4.17659107]
[1641433976227,1.42568137,3507.1,3507.0,4.17659107]
[1641433976429,0.6967,3507.1,3507.0,4.17659107]
[1641433976628,0.6967,3507.1,3506.5,0.65666538]
[1641433977227,1.5,3506.6,3505.5,6.93187564]
[1641433977427,0.03226453,3507.0,3505.5,6.93187564]
[1641433977628,5.43636184,3505.6,3505.5,6.93187564]
[1641433977828,4.62428,3505.6,3505.4,2.83724071]
[1641433978230,4.62428,3505.6,3505.1,0.823791]
[1641433978231,1.45883347,3505.5,3505.1,0.823791]
[1641433978434,1.5,3505.2,3505.1,1.12964137]
[1641433978631,1.5,3505.2,3505.1,0.61274137]
[1641433978829,11.49999999,3505.2,3504.1,5.44031929]
[1641433979033,1.5,3505.1,3504.1,5.44031929]
[1641433979229,1.5,3504.2,3504.1,5.44031929]
[1641433979429,2.2503,3504.2,3503.1,7.05226574]
[1641433979630,2.2503,3504.2,3503.1,6.20158348]
[1641433979631,4.00958,3503.2,3503.1,6.20158348]
[1641433979830,4.52608,3503.2,3503.1,6.20158348]
[1641433980031,4.52608,3503.2,3502.8,1.5]
[1641433980229,0.5165,3503.2,3502.6,2.83724071]
[1641433980630,0.76352609,3503.1,3501.5,7.11911466]
[1641433980937,0.76352609,3503.1,3502.5,1.5]
[1641433981131,0.76352609,3503.1,3502.6,0.132394]
[1641433981429,0.76352609,3503.1,3501.3,2.92019221]
[1641433981632,2.00479,3502.3,3501.5,2.00479]
[1641433981829,2.00479,3502.3,3500.9,4.0]
[1641433981830,1.33262609,3503.1,3500.9,4.0]
[1641433982033,0.76352609,3503.1,3501.7,1.5]
[1641433982230,0.76352609,3503.1,3501.4,1.5]
[1641433982429,24.89823348,3502.6,3501.0,1.5]
[1641433982832,24.89823348,3502.6,3500.3,2.01519818]
[1641433983031,24.89823348,3502.6,3500.9,1.5]
[1641433983232,24.89823348,3502.6,3500.4,1.5]
[1641433983432,24.89823348,3502.6,3500.5,1.5]
[1641433983631,3.08306438,3501.6,3500.7,3.50479]
[1641433983836,3.86516438,3501.6,3501.0,0.132394]
[1641433984138,3.86516438,3501.6,3500.7,2.00479]
[1641433984533,3.86516438,3501.6,3501.4,1.5]
[1641433984732,3.08306438,3501.6,3501.5,1.5]
[1641433985032,3.08306438,3501.6,3500.7,3.50479]
[1641433985332,3.08306438,3501.6,3501.5,1.5]
[1641433985533,0.60548204,3501.8,3501.5,3.15711288]
[1641433985734,0.60548204,3501.8,3501.7,3.50479]
[1641433985932,0.60548204,3501.8,3501.7,2.00479]
[1641433986134,4.62459658,3502.2,3501.7,3.50479]
[1641433986334,4.62459658,3502.2,3502.1,1.5]
[1641433986534,4.03643337,3502.5,3502.1,1.729991]
[1641433986737,4.03643337,3502.5,3502.4,1.5]
[1641433986937,0.80719581,3502.5,3502.4,1.5]
[1641433987137,5.98618098,3503.2,3502.4,1.5]
[1641433987436,3.22923756,3504.0,3501.7,2.77249]
[1641433987437,3.22923756,3504.0,3503.1,1.5]
[1641433987637,3.22923756,3504.0,3503.9,4.00958]
[1641433988038,3.26152357,3504.0,3502.2,2.92692842]
[1641433988238,3.26152357,3504.0,3502.2,1.42692842]
[1641433988438,0.03228601,3503.9,3502.4,1.5]
[1641433988639,1.5,3503.8,3502.2,1.42692842]
[1641433988838,1.5,3503.8,3501.9,1.5]
[1641433989040,0.03228601,3503.7,3501.6,1.5]
[1641433989242,0.03228601,3503.7,3501.2,1.5]
[1641433989243,1.5,3503.6,3501.2,1.5]
[1641433989439,1.53228601,3503.7,3501.9,1.5]
[1641433989740,2.00479,3503.2,3502.0,2.00479]
[1641433989939,2.00479,3503.2,3501.7,2.92713003]
[1641433990542,2.00479,3503.2,3501.9,1.5]
[1641433990739,2.00479,3503.2,3502.3,1.5]
[1641433990941,5.20336475,3503.6,3503.1,1.5]
[1641433991140,5.20336475,3503.6,3503.2,1.5]
[1641433991341,5.77921592,3503.9,3503.5,1.5]
[1641433991541,5.77921592,3503.9,3503.7,1.5]
[1641433991743,5.77921592,3503.9,3503.8,2.3024672]
[1641433992342,5.77921592,3503.9,3503.8,3.5724762]
[1641433992543,4.32914162,3503.9,3503.8,3.9348612]
[1641433992743,4.32914162,3503.9,3503.8,5.36070926]
[1641433992943,1.42584806,3506.9,3503.8,3.9348612]
[1641433992944,4.32914162,3505.3,3503.8,3.9348612]
[1641433993144,4.32914162,3505.3,3505.2,1.5]
[1641433993145,3.95314162,3505.3,3505.2,1.5]
[1641433993444,3.06814163,3505.3,3505.2,2.291409]
[1641433993645,3.06814163,3505.3,3505.2,6.300989]
[1641433994248,3.22923756,3505.6,3505.2,6.300989]
[1641433994249,3.18713756,3505.6,3505.2,6.300989]
[1641433994445,6.9214959,3506.4,3505.5,1.5]
[1641433994645,6.9214959,3506.4,3506.3,1.5]
[1641433994845,6.9214959,3506.4,3506.3,2.295009]
[1641433995046,6.9214959,3506.4,3506.3,3.85243424]
[1641433995646,6.9214959,3506.4,3506.3,6.436983]
[1641433996250,6.9214959,3507.9,3506.3,6.436983]
[1641433996448,6.9214959,3507.9,3506.3,8.49049217]
[1641433996649,1.5,3507.3,3506.3,4.49049217]
[1641433996851,1.5,3507.3,3506.3,3.91300117]
[1641433997049,0.03225723,3507.2,3506.3,3.33500117]
[1641433997350,0.132394,3507.1,3506.3,1.33021117]
[1641433997749,2.03704723,3507.0,3506.3,1.33021117]
[1641433997951,1.5,3506.5,3505.4,1.98789881]
[1641433998151,1.5,3505.9,3504.0,2.67573976]
[1641433998352,1.5,3505.8,3504.0,2.67573976]
[1641433998553,2.56869,3507.0,3504.0,2.67573976]
[1641433998755,1.5,3506.9,3504.8,1.53934268]
[1641433999156,1.5,3506.5,3504.8,1.53934268]
[1641433999358,1.5,3506.2,3504.8,1.53934268]
[1641433999556,0.03226679,3506.4,3504.8,1.53934268]
[1641433999757,2.00479,3506.2,3505.4,2.00479]
[1641433999963,0.132394,3506.1,3505.4,2.00479]
[1641434000358,1.5,3505.6,3505.0,2.00479]
[1641434000559,1.5,3505.1,3505.0,2.00479]
[1641434000761,0.229991,3505.1,3505.0,2.00479]
[1641434000959,2.568485,3505.1,3503.4,2.86427948]
[1641434001159,1.1007615,3505.1,3503.4,2.86427948]
[1641434001360,1.5,3504.6,3503.4,2.86427948]
[1641434001562,1.5,3504.6,3502.5,5.467]
[1641434001761,2.00479,3504.3,3503.5,2.00479]
[1641434001964,2.00479,3504.3,3503.1,2.00479]
[1641434001965,1.5,3503.8,3503.1,2.00479]
[1641434002463,1.632394,3503.8,3503.1,2.00479]
[1641434002763,2.00479,3504.3,3503.1,2.00479]
[1641434003364,2.31894198,3503.7,3503.1,2.00479]
[1641434003564,1.85515358,3503.4,3503.1,2.00479]
[1641434003765,1.85515358,3503.4,3503.1,4.00958]
[1641434004169,5.8159235,3506.1,3503.1,4.00958]
[1641434004366,1.5,3505.8,3504.4,4.0]
[1641434004568,5.8159235,3506.1,3504.1,0.7561]
[1641434004765,4.55692351,3506.1,3504.4,4.0]
[1641434004969,4.55692351,3506.1,3504.1,2.2476645]
[1641434005169,4.55692351,3506.1,3504.5,4.564581]
[1641434005466,1.5,3506.9,3504.4,4.0]
[1641434005667,1.5,3506.9,3504.1,1.4915645]
[1641434005668,1.5,3506.9,3506.3,2.00479]
[1641434005866,0.16465986,3506.8,3506.3,2.00479]
[1641434006067,0.16465986,3506.8,3504.4,1.50064543]
[1641434006068,3.0,3506.4,3504.4,1.50064543]
[1641434006267,0.16465986,3506.8,3500.2,13.074]
[1641434006268,1.5,3505.1,3503.2,1.50115938]
[1641434006467,0.6586,3505.1,3503.2,5.50115938]
[1641434006667,0.6586,3505.1,3503.2,1.50115938]
[1641434006968,0.6586,3505.1,3503.3,4.566014]
[1641434007169,0.6586,3505.1,3503.3,2.63024158]
[1641434007468,1.5,3505.5,3503.3,2.63024158]
[1641434007669,2.00479,3505.3,3504.5,2.00479]
[1641434008267,2.00479,3505.3,3504.6,0.132394]
[1641434008667,1.5,3506.2,3504.6,0.132394]
[1641434008869,1.5,3505.6,3504.6,0.132394]
[1641434009066,32.4725,3508.7,3504.6,0.132394]
[1641434009067,1.5,3507.0,3504.6,0.132394]
[1641434009469,1.5,3506.5,3504.6,0.132394]
[1641434009667,0.03226955,3506.9,3506.3,2.00479]
[1641434009871,2.00479,3507.2,3506.4,0.132394]
[1641434011366,2.00479,3507.2,3505.9,1.56100247]
[1641434011569,2.00479,3507.2,3506.6,0.8555262]
[1641434011771,2.00479,3507.2,3506.7,0.132394]
[1641434011968,1.5,3508.3,3506.9,0.85543455]
[1641434012668,1.5,3509.3,3506.9,0.85543455]
[1641434012868,1.5,3508.1,3506.9,0.85543455]
[1641434013069,0.22433804,3505.9,3505.4,5.467]
[1641434013271,1.5,3508.3,3505.4,5.467]
[1641434013470,1.5,3507.4,3505.5,4.0]
[1641434013669,2.00479,3506.5,3505.7,2.00479]
[1641434014671,2.00479,3506.5,3505.8,4.563475]
[1641434016672,2.00479,3506.5,3506.2,4.0]
[1641434016872,1.5,3508.8,3506.2,4.5392]
[1641434017072,1.5,3509.1,3506.9,4.0]
[1641434017272,1.5,3509.1,3508.8,0.002]
[1641434017474,0.362385,3509.0,3508.8,0.002]
[1641434017673,1.5,3508.9,3508.8,0.002]
[1641434017872,5.50958,3508.9,3508.8,0.002]
[1641434018875,5.871965,3508.9,3507.5,1.44753501]
[1641434019076,1.5,3508.8,3507.5,1.44753501]
[1641434019874,2.00479,3508.0,3507.5,1.44753501]
[1641434020275,2.00479,3508.0,3507.2,0.22800955]
[1641434020876,1.98869,3508.0,3507.2,0.22800955]
[1641434021078,1.98869,3508.0,3507.3,4.561523]
[1641434021277,1.98869,3508.0,3507.3,8.561523]
[1641434022178,1.98869,3508.0,3507.3,4.561523]
[1641434022378,1.98869,3508.0,3507.3,1.98219462]
[1641434022581,1.98869,3508.0,3507.2,0.22800955]
[1641434022779,1.98869,3508.0,3507.3,4.0]
[1641434022980,1.98869,3508.0,3507.2,0.22800955]
[1641434023380,1.98869,3508.0,3507.0,0.05095996]
[1641434023581,1.98869,3508.0,3506.9,2.00479]
[1641434023781,1.98869,3508.0,3507.3,2.00479]
[1641434024380,1.98869,3508.0,3506.9,2.00479]
[1641434025484,1.98869,3508.0,3507.7,0.8552412]
[1641434025682,1.5,3507.8,3506.4,0.85557754]
[1641434025883,2.00479,3506.7,3506.4,0.85557754]
[1641434026083,2.66079,3506.7,3506.4,0.85557754]
[1641434026486,1.5,3506.5,3505.4,5.467]
[1641434026683,2.66079,3506.7,3505.4,5.467]
[1641434026684,1.5,3506.2,3505.4,5.467]
[1641434026984,0.132394,3506.1,3505.7,0.85573044]
[1641434027183,1.5,3506.3,3505.7,0.85573044]
[1641434027384,0.132394,3506.2,3505.7,0.85573044]
[1641434027787,0.132394,3506.2,3504.9,0.85593479]
[1641434027788,4.00958,3505.8,3504.9,0.85593479]
[1641434027986,0.132394,3505.7,3504.9,0.85593479]